{"text_format":"1","workbook":"xlsx","n_sheets":1,"sheets":["DARSTELLUNG WIRTSCHAFTL. LAGE"],"not_rendered":{"charts":0,"images":0,"macros":1,"external_links":0,"defined_names":1,"comments":0,"pivot_tables":0},"unopened":[],"bounds":{"document_bytes":16777216,"sheet_cells":100000,"rows_first":2000,"rows_last":500,"rows_between":2000,"halvings":0,"cell_chars":16384,"cell_head_chars":4096},"cells_cut":0,"cells_raw":0,"read":"whole","date_system":"1900"}

{"sheet":"DARSTELLUNG WIRTSCHAFTL. LAGE","index":0,"n_rows":48,"n_cols":13,"rows_kept":48,"cut":false,"hidden":false,"merged":[[38,3,38,6],[5,7,5,10],[6,7,6,10],[7,7,7,10],[49,9,49,10],[41,3,41,6],[47,2,47,10],[45,2,45,10],[46,2,46,10]]}
["Anlage ",null,null,null,null,null,null,null,null,null,null,"Excel-Datei der Bewilligungsbehörde per Mail zusenden","diese Felder sind auszufüllen"]
["Darstellung der wirtschaftlichen Lage der Antragstellerin bzw. des Antragstellers"]
["vor Beginn und für die ersten drei Geschäftsjahre nach Durchführung des Vorhabens. Angabe bitte in Euro.",null,null,null,null,null,null,null,null,null,null,null,"mit zwei Nachkommastellen"]
[]
["Die Anlage ist bei Gesamtausgaben über 50.000 Euro dem Grundantrag beizufügen."]
[" Antragstellerin/Antragsteller",null,null,null,"Name, Vorname: "]
[null,null,null,null,"Unternehmernummer: "]
[null,null,null,null,null,null,"Grundantrag vom (Datum Einreichung):"]
[]
[]
[null,null,null,null,null,null,null,"-1*","+ 1","+ 2","+ 3"]
[null,null,null,null,null,null,"(Buchführungs-)Jahr"]
[{"$f":"A12+1","v":1},null,"Betriebliche Gesamteinnahmen "]
[{"$f":"A13+1","v":2}," -","Aufwendungen für Roh-, Hilfs- und Betriebsstoffe"]
[3," =","Bruttowertschöpfung (1 - 2)",null,null,null,null,{"$f":"H13-H14","v":0},{"$f":"I13-I14","v":0},0,0]
[{"$f":"A15+1","v":4}," -","Personalausgaben"]
[{"$f":"A16+1","v":5}," -","Sonstige betriebliche Aufwendungen (z. B. Versicherungen)"]
[6," -","Abschreibungen"]
[7," -","Zinsen alt"]
[8," -","Zinsen neu (durch Kredite für EMFF-Förderung)"]
[9," ="," G e w i n n vor Steuern (= 3 - Summe (4 bis 8)",null,null,null,null,{"$f":"H15-SUM(H16:H20)","v":0},{"$f":"I15-SUM(I16:I20)","v":0},0,0]
[]
[{"$f":"A21+1","v":10}," +","Nichtbetriebliche Erwerbseinkommen"]
[{"$f":"A23+1","v":11}," +","Einnahmen aus Vermietung u. Verpachtung, Gewerbe (Ergebnis vor Zinsen)"]
[{"$f":"A24+1","v":12}," -","Zinsausgaben für vermietete Objekte / für Gewerbe"]
[13," +","Einkünfte aus Kapitalvermögen, sonst. Nebeneinkommen"]
[14," +","Einkommensübertragungen"]
[15," +","Sonstigte Einnahmen"]
[16," +","Summe Nebeneinkommen (= Summe 10+11+13+14+15-12)",null,null,null,null,{"$f":"SUM(H23:H28)-H25","v":0},{"$f":"SUM(I23:I28)-I25","v":0},0,0]
[17," -","Lebenshaltungskosten  ** und ***"]
[18," -","Aufwand Wohnung und/oder Wohn- u. Altenteilerhaus (ohne Zins und Tilgung)"]
[19," -","Zinsausgaben für Privat (z.B. für Wohnhaus)"]
[20," -","Altenteil, sonst. Einkommensübertragungen"]
[21," -","Private Versicherungen"]
[22," -","Private Steuern"]
[23,"-","Summe Privataufwand (= Summe 17 bis 21)",null,null,null,null,{"$f":"SUM(H30:H35)","v":0},{"$f":"SUM(I30:I35)","v":0},0,0]
[]
[{"$f":"A36+1","v":24}," = ","Berein. Eigenkapitalveränderung  (= 9+16-23)",null,null,null,null,{"$f":"H21+H29-H36","v":0},{"$f":"I21+I29-I36","v":0},0,0]
[{"$f":"A38+1","v":25},"  +  ","Zinsausgaben gesamt ***     ","(Land- und Forstwirtschaft, \nvermietete Objekte/ Gewerbe, privat)"]
[{"$f":"A39+1","v":26}," = ","Langfristige Kapitaldienstgrenze (KDGr) (= 24 + 25)",null,null,null,null,{"$f":"H38+H39","v":0},{"$f":"I38+I39","v":0},0,0]
[]
[{"$f":"A40+1","v":27}," - ","Kapitaldienst ** (KD)","Zinsen und Tilgung (Land- und Forstwirtschaft, vermietete  Objekte/ Gewerbe, privat)                                                                                                                                                                                                                                                                              "]
[{"$f":"A42+1","v":28}," +  ","Absetzung für Abnutzung (AfA) ***"]
[{"$f":"A43+1","v":29}," = "," Differenz langfristige KDGr - KD + AfA (= 26 - 27 + 28)",null,null,null,null,{"$f":"H40-H42+H43","v":0},{"$f":"I40-I42+I43","v":0},0,0]
[]
[null,"*","-1 bezieht sich auf das Jahr vor der Durchführung des Vorhabens; +1 ff. bezieht sich auf die entsprechenden Jahre nach Durchführung des Vorhabens."]
[null,"**","Lebenshaltungskosten sind die Kosten, die von einem Haushalt aufgewandt werden müssen, um das Leben im Alltag zu bestreiten. Das sind im Besonderen Ausgaben für Verpflegung, Bekleidung, Hygiene und Körperpflege, Bildung und Ausbildung, Unterhaltung, Vergnügen, Sport und Reisen; dazu Betrieb und Unterhalt von Fahrzeugen, Tierhaltung, Aufwendungen für Haushaltshilfen, soweit nicht im Betrieb geltend gemacht."]
[null,"***","Betrifft Aufwendungen für Maßnahmen im beantragten Betrieb, Aufwendungen für/aus weitere/n Betrieben sowie gesamte private Aufwendungen, auch wenn in anderen Betrieben geltend gemacht."]